bitfinex-derivatives/quotes_ETHF0:USTF0_20260116
["timestamp","ask_amount","ask_price","bid_price","bid_amount"]
[1768523688701,1.43283536,3328.1,3327.1,0.36512172]
[1768523688904,1.43283536,3328.1,3327.2,0.36512172]
[1768523689104,1.43283536,3328.1,3327.3,0.36512172]
[1768523689306,1.43283536,3328.1,3326.3,1.41016545]
[1768523689510,1.43283536,3328.6,3326.6,1.41016545]
[1768523689808,1.43283536,3328.6,3327.3,1.20571511]
[1768523690216,1.43283536,3328.6,3326.9,2.61588056]
[1768523691712,0.86576023,3328.5,3326.9,2.61588056]
[1768523691917,1.43283536,3328.6,3327.0,1.40325864]
[1768523692102,0.86576019,3328.5,3327.0,1.40325864]
[1768523692307,1.43283536,3328.6,3327.0,1.40325864]
[1768523692507,0.86609321,3328.5,3327.0,1.40325864]
[1768523692709,1.43283536,3328.6,3327.0,1.40325864]
[1768523692913,0.86609313,3328.5,3327.0,1.40325864]
[1768523693112,1.43283536,3328.6,3327.0,1.40325864]
[1768523693311,0.86609312,3328.5,3327.0,1.40325864]
[1768523693511,1.43283536,3328.6,3327.0,1.40325864]
[1768523693718,0.86640052,3328.5,3327.0,1.40325864]
[1768523694020,1.43283536,3328.6,3327.0,1.40325864]
[1768523694204,0.86639912,3328.5,3327.0,1.40325864]
[1768523694401,0.86675608,3328.4,3327.0,1.40325864]
[1768523694613,1.43283536,3328.6,3327.0,1.40325864]
[1768523694815,0.86675608,3328.5,3327.0,1.40325864]
[1768523695010,0.86675608,3328.4,3327.0,1.40325864]
[1768523695207,1.43283536,3328.6,3327.0,1.40325864]
[1768523695407,0.8668532,3328.5,3327.0,1.40325864]
[1768523695613,0.8668532,3328.4,3327.0,1.40325864]
[1768523695820,1.43283536,3328.6,3327.0,1.40325864]
[1768523696010,0.86691399,3328.5,3327.0,1.40325864]
[1768523696210,0.86691399,3328.4,3327.0,1.40325864]
[1768523696416,1.43283536,3328.6,3327.0,1.40325864]
[1768523696717,0.86704974,3328.5,3327.0,1.40325864]
[1768523696920,0.86704974,3328.4,3327.0,1.40325864]
[1768523697123,1.43283536,3328.6,3326.9,1.20571511]
[1768523697321,2.2954699,3328.5,3326.9,1.20571511]
[1768523697521,0.86708221,3328.4,3326.9,1.20571511]
[1768523697920,0.86708221,3328.4,3326.9,2.60897375]
[1768523698419,1.42838769,3328.5,3326.9,2.60897375]
[1768523698610,0.86737717,3328.4,3326.9,2.60897375]
[1768523698812,1.42838769,3328.5,3326.9,2.60897375]
[1768523699010,0.86737717,3328.4,3326.9,2.60897375]
[1768523699213,1.42838769,3328.5,3326.9,2.60897375]
[1768523699414,0.86755906,3328.4,3326.9,2.60897375]
[1768523699614,0.86755906,3328.3,3326.9,2.60897375]
[1768523699815,1.42838769,3328.5,3326.9,2.60897375]
[1768523700015,0.86755917,3328.4,3326.9,2.60897375]
[1768523700313,0.86755917,3328.3,3326.9,2.60897375]
[1768523700513,0.86755917,3328.2,3326.9,2.60897375]
[1768523700720,1.42838769,3328.5,3326.9,2.60897375]
[1768523700921,0.86772853,3328.4,3326.9,2.60897375]
[1768523701120,0.86772853,3328.3,3326.9,1.40325864]
[1768523701325,1.42838769,3328.5,3326.9,1.40325864]
[1768523701326,0.86772853,3328.2,3326.9,1.40325864]
[1768523701525,1.42838769,3328.4,3326.9,1.40325864]
[1768523702227,1.42838769,3329.3,3327.1,1.40325864]
[1768523702418,0.86831143,3329.2,3327.5,1.40325864]
[1768523702612,0.86831143,3329.1,3327.5,1.40325864]
[1768523702817,0.86831143,3329.0,3327.5,1.40325864]
[1768523703016,0.86831143,3328.9,3327.5,1.40325864]
[1768523703226,1.42838769,3329.3,3327.5,1.40325864]
[1768523703418,0.86841566,3329.2,3327.5,1.40325864]
[1768523703623,0.86841566,3329.1,3327.5,1.40325864]
[1768523703825,0.86841566,3329.0,3327.5,1.40325864]
[1768523704023,0.86841566,3328.9,3327.5,1.40325864]
[1768523704225,0.86841566,3328.8,3327.5,1.40325864]
[1768523704423,1.57860769,3329.3,3327.5,1.40325864]
[1768523704626,0.8684187,3329.2,3327.5,1.40325864]
[1768523704918,0.8684187,3329.1,3327.5,1.40325864]
[1768523705122,0.8684187,3329.0,3327.5,1.40325864]
[1768523705328,0.8684187,3328.9,3327.5,1.40325864]
[1768523705626,1.42838769,3329.1,3327.5,1.40325864]
[1768523705831,0.86841809,3329.0,3327.5,1.40325864]
[1768523706127,0.86841809,3328.9,3327.5,1.40325864]
[1768523706330,1.42838769,3329.1,3327.5,1.40325864]
[1768523706628,0.86841959,3329.0,3327.5,1.40325864]
[1768523706829,0.86841959,3328.9,3327.5,1.40325864]
[1768523707129,1.42838769,3329.1,3327.5,1.40325864]
[1768523707333,0.86796064,3329.0,3327.5,1.40325864]
[1768523707514,0.86796064,3328.9,3327.5,1.40325864]
[1768523707718,1.42838769,3329.1,3327.5,1.40325864]
[1768523707919,0.86796102,3329.0,3327.5,1.40325864]
[1768523708121,0.86796102,3328.9,3327.5,1.40325864]
[1768523708322,1.42838769,3329.1,3327.1,1.40325864]
[1768523708523,1.42838769,3328.9,3327.1,1.40325864]
[1768523711629,0.86795688,3328.8,3327.1,1.40325864]
[1768523711832,1.42838769,3328.9,3327.1,1.40325864]
[1768523712033,0.86795687,3328.8,3327.1,1.40325864]
[1768523712229,1.42838769,3328.9,3327.1,1.40325864]
[1768523712429,0.86795431,3328.8,3327.1,1.40325864]
[1768523712733,1.42838769,3328.9,3327.1,1.40325864]
[1768523713032,2.29634235,3328.8,3327.1,1.40325864]
[1768523713230,1.42838769,3328.8,3327.1,1.40325864]
[1768523714629,1.57862769,3328.8,3327.1,1.40325864]
[1768523714832,1.42838769,3328.6,3326.8,1.20571511]
[1768523715529,1.42838769,3328.6,3326.8,2.60897375]
[1768523715720,1.42838769,3328.6,3326.8,1.20571511]
[1768523715925,1.42838769,3328.6,3326.9,1.40325864]
[1768523716733,1.57863769,3328.6,3326.9,1.40325864]
[1768523716928,1.42838769,3328.1,3326.5,3.76480187]
[1768523717124,1.42838769,3328.1,3326.4,1.40325864]
[1768523719533,0.15026,3328.2,3326.6,1.40325864]
[1768523722232,1.6221852,3328.2,3326.6,1.40325864]
[1768523723538,2.82741673,3328.2,3326.8,1.20523153]
[1768523724037,2.82741673,3328.2,3326.6,1.40325864]
[1768523724237,2.67715673,3327.9,3326.4,1.20523153]
[1768523724435,1.20523153,3327.6,3326.2,1.48476857]
[1768523724736,1.4719252,3327.6,3326.2,0.00268974]
[1768523724939,1.4719252,3327.6,3326.4,1.20523153]
[1768523728044,1.20523153,3327.5,3326.2,0.00268974]
[1768523728240,1.53531776,3327.5,3326.3,1.20523153]
[1768523730738,1.53531776,3327.5,3326.2,0.00268974]
[1768523731049,1.53531776,3327.3,3326.2,0.00268974]
[1768523732749,1.20523153,3327.1,3326.2,0.00268974]
[1768523733143,1.53531776,3327.3,3326.2,0.00268974]
[1768523737247,1.53531776,3327.3,3326.2,1.20792127]
[1768523737849,1.53531776,3327.3,3326.2,0.00268974]
[1768523747860,1.53531776,3327.9,3326.6,1.20523153]
[1768523748158,2.40867953,3327.8,3326.6,1.20523153]
[1768523748360,0.87336177,3327.7,3326.6,1.20523153]
[1768523750159,1.53531776,3328.3,3327.0,1.20523153]
[1768523750457,2.40887662,3328.2,3327.0,1.20523153]
[1768523750759,1.53531776,3328.2,3327.0,1.20523153]
[1768523752561,1.53531776,3328.2,3327.2,1.20523153]
[1768523752761,3.007,3328.5,3327.4,1.20523153]
[1768523752960,0.87367318,3328.4,3327.4,1.20523153]
[1768523753264,3.007,3328.5,3327.4,1.20523153]
[1768523753565,0.87363295,3328.4,3327.4,1.20523153]
[1768523753858,3.007,3328.5,3327.4,1.20523153]
[1768523754060,0.87363319,3328.4,3327.4,1.20523153]
[1768523754258,3.007,3328.5,3327.4,1.20523153]
[1768523754457,0.87357314,3328.4,3327.4,1.20523153]
[1768523754658,3.007,3328.5,3327.4,1.20523153]
[1768523754858,0.87357337,3328.4,3327.4,1.20523153]
[1768523755059,3.007,3328.5,3327.4,1.20523153]
[1768523755260,0.87357337,3328.4,3327.4,1.20523153]
[1768523755555,3.007,3328.5,3327.4,1.20523153]
[1768523755757,0.87343478,3328.4,3326.8,1.56211617]
[1768523756066,1.53095175,3328.3,3327.0,1.20523153]
[1768523757364,0.15024,3328.7,3327.0,1.20523153]
[1768523757365,1.53095175,3328.8,3327.6,1.20523153]
[1768523757553,1.53095175,3328.6,3327.6,1.20523153]
[1768523759362,1.53095175,3328.6,3327.0,1.56211617]
[1768523759571,1.53095175,3328.6,3327.3,1.20523153]
[1768523761269,1.53095175,3328.3,3326.7,0.15033]
[1768523761565,1.53095175,3328.3,3326.8,1.20523153]
[1768523761963,1.53095175,3328.3,3327.0,1.20523153]
[1768523763262,1.53095175,3328.3,3326.7,0.15033]
[1768523763467,1.53095175,3328.3,3327.0,1.20523153]
[1768523766368,1.53095175,3328.3,3326.6,1.56211617]
[1768523766571,2.73618328,3328.1,3326.7,1.20523153]
[1768523767567,1.53095175,3328.0,3326.8,1.20523153]
[1768523768960,1.53095175,3327.8,3326.2,1.56480591]
[1768523769268,1.53095175,3327.8,3326.5,1.20523153]
[1768523769658,1.53095175,3327.8,3326.7,1.20523153]
[1768523771670,1.53095175,3327.8,3326.4,1.20523153]
[1768523772171,1.53095175,3327.8,3326.6,1.20523153]
[1768523772373,0.15025,3328.4,3327.3,1.20523153]
[1768523774377,0.86961224,3328.3,3327.3,1.20523153]
[1768523774562,0.15025,3328.4,3327.3,1.20523153]
[1768523774767,0.86961224,3328.3,3327.3,1.20523153]
[1768523775061,0.15025,3328.4,3327.3,1.20523153]
[1768523775265,0.86961231,3328.3,3327.3,1.20523153]
[1768523775461,0.15025,3328.4,3327.3,1.20523153]
[1768523775662,0.8698394,3328.3,3327.3,1.20523153]
[1768523775871,0.15025,3328.4,3327.0,1.20523153]
[1768523776070,0.8698396,3328.3,3327.0,1.20523153]
[1768523776270,0.15025,3328.4,3326.5,1.56211617]
[1768523776570,0.87012074,3328.3,3327.0,1.20523153]
[1768523776765,0.15025,3328.4,3327.0,1.20523153]
[1768523776975,0.87012074,3328.3,3327.0,1.20523153]
[1768523777165,0.15025,3328.4,3327.0,1.20523153]
[1768523777366,0.87046743,3328.3,3327.0,1.20523153]
[1768523777665,0.87046743,3328.2,3327.0,1.20523153]
[1768523777862,1.68120175,3328.4,3326.6,12.56211617]
[1768523778075,0.87046756,3328.3,3327.0,1.20523153]
[1768523778275,0.87046756,3328.2,3327.0,1.20523153]
[1768523778477,1.68120175,3328.4,3327.0,1.20523153]
[1768523778773,0.87079245,3328.3,3327.0,1.20523153]
[1768523779075,0.87079245,3328.2,3327.0,1.20523153]
[1768523779268,1.68120175,3328.4,3327.0,1.20523153]
[1768523779470,0.87123007,3328.3,3327.0,1.20523153]
[1768523779675,0.87123007,3328.2,3327.0,1.20523153]
[1768523779977,1.68120175,3328.4,3327.0,1.20523153]
[1768523780280,0.87123009,3328.3,3327.0,1.20523153]
[1768523780478,0.87123009,3328.2,3327.0,1.20523153]
[1768523780778,0.87123009,3328.1,3327.0,1.20523153]
[1768523781076,1.68120175,3328.4,3327.0,1.20523153]
[1768523781269,0.87129471,3328.3,3327.0,1.20523153]
[1768523781469,0.87129471,3328.2,3327.0,1.20523153]
[1768523781671,1.68120175,3328.4,3327.0,1.20523153]
[1768523781869,0.87136837,3328.3,3327.0,1.20523153]
[1768523782073,1.68120175,3328.4,3327.0,1.20523153]
[1768523782378,0.87136836,3328.3,3327.0,1.20523153]
[1768523782677,1.68120175,3328.4,3327.0,1.20523153]
[1768523782880,0.87143667,3328.3,3327.0,1.20523153]
[1768523783072,1.68120175,3328.4,3327.0,1.20523153]
[1768523783272,0.87143667,3328.3,3327.0,1.20523153]
[1768523783472,1.68120175,3328.4,3327.0,1.20523153]
[1768523783671,0.87143827,3328.3,3327.0,1.20523153]
[1768523783870,1.68120175,3328.4,3327.0,1.20523153]
[1768523784072,0.87143748,3328.3,3327.0,1.20523153]
[1768523784274,1.68120175,3328.4,3327.0,1.20523153]
[1768523784474,0.87143894,3328.3,3327.0,1.20523153]
[1768523784674,1.68120175,3328.4,3327.0,1.20523153]
[1768523784874,0.87143915,3328.3,3327.0,1.20523153]
[1768523785076,1.68120175,3328.4,3327.0,1.20523153]
[1768523785273,0.87143927,3328.3,3326.7,2.64048117]
[1768523785477,1.68120175,3328.4,3326.7,2.64048117]
[1768523785778,0.87144156,3328.3,3326.7,2.64048117]
[1768523785979,1.68120175,3328.4,3326.7,2.64048117]
[1768523786170,0.87144169,3328.3,3326.7,2.64048117]
[1768523786370,1.68120175,3328.4,3326.7,2.64048117]
[1768523786571,0.87144548,3328.3,3326.7,2.64048117]
[1768523786770,1.68120175,3328.4,3326.7,2.64048117]
[1768523786981,0.87144548,3328.3,3326.7,2.64048117]
[1768523787179,1.68120175,3328.4,3326.7,2.64048117]
[1768523787370,0.87144855,3328.3,3326.7,2.64048117]
[1768523787571,1.68120175,3328.4,3326.7,2.64048117]
[1768523787880,0.87144851,3328.3,3326.7,2.64048117]
[1768523788070,1.68120175,3328.4,3326.7,2.64048117]
[1768523788271,2.36652846,3328.3,3326.7,2.64048117]
[1768523788478,1.49507987,3328.3,3326.7,2.64048117]
[1768523791785,0.87166062,3328.2,3326.7,2.64048117]
[1768523792080,1.49507987,3328.3,3326.7,2.64048117]
[1768523792380,0.87166062,3328.2,3326.7,2.64048117]
[1768523792582,1.49507987,3328.3,3326.7,2.64048117]
[1768523792769,0.87168841,3328.2,3326.7,2.64048117]
[1768523792974,1.49507987,3328.3,3326.7,2.64048117]
[1768523793176,0.87168828,3328.2,3326.7,2.64048117]
[1768523793369,1.49507987,3328.3,3326.7,1.2049391]
[1768523793674,2.36680127,3328.2,3326.7,1.2049391]
[1768523793872,1.49507987,3328.2,3326.7,1.2049391]
[1768523799198,0.15025,3328.4,3326.8,1.40414536]
[1768523799393,0.8727387,3328.3,3326.8,1.40414536]
[1768523799593,0.8727387,3328.2,3326.8,1.40414536]
[1768523799891,0.15025,3328.4,3326.8,1.40414536]
[1768523800092,0.87273552,3328.3,3326.8,1.40414536]
[1768523800287,0.87273552,3328.2,3326.8,1.40414536]
[1768523800591,0.15025,3328.4,3326.8,1.40414536]
[1768523800788,0.87278323,3328.3,3326.8,1.40414536]
[1768523800991,0.87278323,3328.2,3326.8,1.40414536]
[1768523801293,0.15025,3328.4,3326.8,1.40414536]
[1768523801489,0.87284553,3328.3,3326.8,1.40414536]
[1768523801682,0.15025,3328.4,3326.8,1.40414536]
[1768523801883,0.87284552,3328.3,3326.8,1.40414536]
[1768523802090,0.15025,3328.4,3326.8,1.40414536]
[1768523802289,0.87284566,3328.3,3326.8,1.40414536]
[1768523802489,0.15025,3328.4,3326.8,1.40414536]
[1768523802690,1.49507987,3328.2,3326.6,1.40414536]
[1768523811698,2.38031431,3328.1,3326.6,1.40414536]
[1768523811896,1.50727236,3328.1,3326.6,1.40414536]
[1768523812088,1.50727236,3328.1,3326.3,14.91515187]
[1768523812288,1.50727236,3328.1,3326.4,1.2049391]
[1768523814303,0.87304535,3328.0,3326.3,14.91515187]
[1768523814503,1.50727236,3327.9,3326.3,14.91515187]
[1768523816800,1.50727236,3327.9,3326.3,3.76480187]
[1768523816996,1.50727236,3327.9,3326.2,6.37569322]
[1768523821190,1.50727236,3327.9,3326.2,4.97243071]
[1768523821392,1.50727236,3327.9,3326.2,1.20762884]
[1768523821996,1.65755236,3327.9,3326.2,1.20762884]
[1768523823702,0.15028,3327.9,3326.6,1.2049391]
[1768523824605,1.65755236,3327.9,3326.4,11.0]
[1768523825310,1.50727236,3328.3,3326.8,1.2049391]
[1768523830109,1.50727236,3328.7,3327.2,1.2049391]
[1768523830312,1.50727236,3328.7,3327.2,2.60820161]
[1768523830500,0.15023,3328.9,3327.3,1.40326251]
[1768523832212,1.50727236,3328.8,3326.9,1.55358251]
[1768523832397,1.50727236,3328.8,3326.9,2.75852161]
[1768523834310,1.50727236,3328.8,3327.3,1.2049391]
[1768523834811,1.50727236,3328.8,3327.3,2.60820161]
[1768523840803,1.50727236,3328.8,3327.0,1.2049391]
[1768523847319,1.50727236,3328.8,3327.6,1.2047071]
[1768523855932,0.86220946,3329.0,3327.6,1.2047071]
[1768523856634,0.15023,3328.9,3327.6,1.2047071]
[1768523858028,1.61651137,3328.9,3327.6,1.2047071]
[1768523859829,1.61651137,3328.9,3327.3,1.2047071]
[1768523860230,1.46628137,3328.7,3327.3,1.2047071]
[1768523861927,1.46628137,3328.6,3327.3,1.2047071]
[1768523870436,1.46628137,3328.6,3327.0,1.42698058]
[1768523870737,1.46628137,3328.6,3327.3,1.2047071]
[1768523872736,1.2047071,3328.1,3326.9,3.76480187]
[1768523872922,1.2047071,3328.1,3326.9,4.96950897]
[1768523873127,1.2047071,3328.3,3326.9,1.2047071]
[1768523874135,2.60236832,3328.3,3327.0,1.2047071]
[1768523875136,1.39766122,3328.2,3326.6,1.45004128]
[1768523875338,1.39766122,3328.2,3327.1,1.2047071]
[1768523878839,1.2047071,3327.5,3326.3,3.76480187]
[1768523879033,1.39766122,3327.6,3326.3,4.96950897]
[1768523879233,1.39766122,3327.6,3326.3,1.2047071]
[1768523879441,1.39766122,3329.1,3327.5,1.2047071]
[1768523879741,1.2047071,3328.6,3327.2,1.2047071]
[1768523879940,2.60236832,3328.6,3327.2,1.2047071]
[1768523882047,1.39766122,3328.6,3327.4,1.2047071]
[1768523889159,1.39766122,3328.6,3327.0,2.65474838]
[1768523889160,1.39766122,3328.6,3327.6,1.2047071]
[1768523891756,1.39766122,3328.6,3327.0,2.65474838]
[1768523892056,1.3549371,3329.0,3327.0,1.2047071]
[1768523892057,1.39766122,3328.3,3327.0,1.2047071]
[1768523892258,1.39766122,3328.3,3326.7,0.15033]
[1768523892455,1.39766122,3328.3,3327.1,1.2047071]
[1768523901262,2.60236832,3328.3,3326.5,1.45004128]
[1768523901467,2.39645522,3328.2,3326.7,1.2047071]
[1768523901664,2.72469348,3328.1,3326.7,1.2047071]
[1768523901867,1.51998638,3328.1,3326.7,1.2047071]
[1768523902563,1.51998638,3328.1,3326.9,1.2047071]
[1768523903377,2.72469348,3328.1,3326.5,1.45004128]
[1768523903560,1.51998638,3328.0,3326.7,1.2047071]
[1768523903873,1.51998638,3328.0,3326.6,1.2047071]
[1768523905169,1.2047071,3327.9,3326.6,1.2047071]
[1768523905376,1.51998638,3327.8,3326.5,1.2047071]
[1768523905678,1.2047071,3327.7,3326.5,1.2047071]
[1768523905975,2.72469348,3327.7,3326.5,1.2047071]
[1768523906175,1.51998638,3327.7,3326.5,1.2047071]
[1768523906364,1.51998638,3327.7,3326.7,1.2047071]
[1768523907274,1.51998638,3327.7,3326.2,1.59418632]
[1768523907477,0.15027,3328.1,3326.4,1.59149658]
[1768523907478,1.76005757,3328.1,3326.4,1.59149658]
[1768523907678,0.87586095,3328.0,3326.4,1.59149658]
[1768523907868,1.76005757,3328.1,3326.4,1.59149658]
[1768523908166,0.87586133,3328.0,3326.4,1.59149658]
[1768523908368,1.76005757,3328.1,3326.4,1.59149658]
[1768523908568,1.60978757,3328.1,3326.4,1.59149658]
[1768523908769,3.007,3328.3,3326.8,1.59149658]
[1768523911683,0.87580761,3328.2,3326.8,1.59149658]
[1768523911871,3.007,3328.3,3326.8,1.59149658]
[1768523912071,0.8758076,3328.2,3326.8,1.59149658]
[1768523912272,3.007,3328.3,3326.8,1.59149658]
[1768523912473,0.87584886,3328.2,3326.8,1.59149658]
[1768523912781,3.007,3328.3,3326.8,1.59149658]
[1768523912981,0.87584886,3328.2,3326.8,1.59149658]
[1768523913183,3.007,3328.3,3326.8,1.59149658]
[1768523913374,0.87589989,3328.2,3326.8,1.59149658]
[1768523913576,3.007,3328.3,3326.8,1.59149658]
[1768523913784,0.87589988,3328.2,3326.8,1.59149658]
[1768523913981,3.007,3328.3,3326.8,1.59149658]
[1768523914195,0.87589988,3328.2,3326.8,1.59149658]
[1768523914375,3.007,3328.3,3326.8,1.59149658]
[1768523914574,0.8759618,3328.2,3326.8,1.59149658]
[1768523914884,3.007,3328.3,3326.8,1.59149658]
[1768523915084,0.8759618,3328.2,3326.8,1.59149658]
[1768523915284,3.007,3328.3,3326.8,1.59149658]
[1768523915495,0.87603434,3328.2,3326.8,1.59149658]
[1768523915677,3.007,3328.3,3326.8,1.59149658]
[1768523915879,1.60978757,3328.1,3326.4,1.59149658]
[1768523916274,1.76005757,3328.1,3326.4,1.59149658]
[1768523916481,1.60978757,3327.9,3326.4,1.59149658]
[1768523917285,1.60978757,3328.3,3326.4,1.59149658]
[1768523917586,0.87427662,3328.2,3326.8,1.59149658]
[1768523917773,1.60978757,3328.3,3326.8,1.59149658]
[1768523917774,0.87427662,3328.1,3326.8,1.59149658]
[1768523917973,1.60978757,3328.3,3326.8,1.59149658]
[1768523918181,0.87423203,3328.2,3326.8,1.59149658]
[1768523918471,0.87423203,3328.1,3326.8,1.59149658]
[1768523918784,1.60978757,3328.3,3326.8,1.59149658]
[1768523918976,0.87434283,3328.2,3326.8,1.59149658]
[1768523919275,0.87434283,3328.1,3326.8,1.59149658]
[1768523919469,1.60978757,3328.3,3326.8,1.59149658]
[1768523919674,0.87447439,3328.2,3326.8,1.59149658]
[1768523919874,0.87447439,3328.1,3326.8,1.59149658]
[1768523920094,1.60978757,3328.3,3326.8,1.59149658]
[1768523920385,0.87447438,3328.2,3326.8,1.59149658]
[1768523920679,0.87447438,3328.1,3326.8,1.59149658]
[1768523920886,1.60978757,3328.3,3326.8,1.59149658]
[1768523921187,0.87466522,3328.2,3326.8,1.59149658]
[1768523921487,0.87466522,3328.1,3326.8,1.59149658]
[1768523921784,1.60978757,3328.3,3326.8,1.59149658]
[1768523921976,0.87490209,3328.2,3326.8,1.59149658]
[1768523922177,0.87490209,3328.1,3326.8,1.59149658]
[1768523922377,1.60978757,3328.3,3326.8,1.59149658]
[1768523922576,0.87390686,3328.2,3326.8,1.59149658]
[1768523922878,0.87390686,3328.1,3326.8,1.59149658]
[1768523923070,1.60978757,3328.3,3326.8,1.59149658]
[1768523923276,0.87390667,3328.2,3326.8,1.59149658]
[1768523923477,0.87390667,3328.1,3326.8,1.59149658]
[1768523923681,1.60978757,3328.3,3326.8,1.59149658]
[1768523923885,0.87393841,3328.2,3326.8,1.59149658]
[1768523924085,1.60978757,3328.3,3326.8,1.59149658]
[1768523924086,0.87393841,3328.1,3326.8,1.59149658]
[1768523924287,1.60978757,3328.3,3326.8,1.59149658]
[1768523924480,0.87397444,3328.2,3326.8,1.59149658]
[1768523924793,0.87397444,3328.1,3326.8,1.59149658]
[1768523924979,1.60978757,3328.3,3326.8,1.59149658]
[1768523925174,0.87397407,3328.2,3326.8,1.59149658]
[1768523925388,0.87397407,3328.1,3326.8,1.59149658]
[1768523925592,1.60978757,3328.3,3326.8,1.59149658]
[1768523925890,0.87401307,3328.2,3326.8,1.59149658]
[1768523926093,0.87401307,3328.1,3326.8,1.59149658]
[1768523926286,1.60978757,3328.3,3326.8,1.59149658]
[1768523926490,0.8740548,3328.2,3326.8,1.59149658]
[1768523926693,0.8740548,3328.1,3326.8,1.59149658]
[1768523926892,4.61678757,3328.6,3326.8,1.59149658]
[1768523927190,0.87405473,3328.5,3326.8,1.59149658]
[1768523927389,0.87405473,3328.4,3326.8,1.59149658]
[1768523927590,0.87405473,3328.3,3327.0,1.20537027]
[1768523927889,4.61678757,3328.6,3327.0,1.20537027]
[1768523928193,0.87405882,3328.5,3327.0,1.20537027]
[1768523928490,0.87405882,3328.4,3327.0,1.20537027]
[1768523928693,0.87405882,3328.3,3327.0,1.20537027]
[1768523928889,4.61678757,3328.6,3327.0,1.20537027]
[1768523929090,0.874075,3328.5,3327.1,1.59149658]
[1768523929387,4.61678757,3328.6,3327.1,1.59149658]
[1768523929597,0.87397245,3328.5,3327.1,1.59149658]
[1768523929892,4.61678757,3328.6,3327.1,1.59149658]
[1768523930081,0.87397275,3328.5,3327.1,1.59149658]
[1768523930278,4.61678757,3328.6,3327.1,1.59149658]
[1768523930477,0.87389457,3328.5,3327.1,1.59149658]
[1768523930696,4.61678757,3328.6,3327.1,1.59149658]
[1768523930995,0.87389429,3328.5,3327.1,1.59149658]
[1768523931189,4.61678757,3328.6,3327.1,1.59149658]
[1768523931388,0.87382104,3328.5,3327.1,1.59149658]
[1768523931689,4.61678757,3328.6,3327.1,1.59149658]
[1768523931889,0.87382102,3328.5,3327.1,1.59149658]
[1768523932087,4.61678757,3328.6,3327.1,1.59149658]
[1768523932287,0.87382102,3328.5,3327.1,1.59149658]
[1768523932478,4.61678757,3328.6,3327.1,1.59149658]
[1768523932678,0.87372179,3328.5,3327.1,1.59149658]
[1768523932894,4.61678757,3328.6,3327.1,1.59149658]
[1768523933193,0.87372191,3328.5,3327.1,1.59149658]
[1768523933493,4.61678757,3328.6,3327.1,1.59149658]
[1768523937496,1.60978757,3328.6,3327.1,1.59149658]
[1768523942795,1.60978757,3328.6,3327.0,1.20537027]
[1768523948205,1.60978757,3328.6,3326.7,1.53603476]
[1768523951720,0.87070599,3328.5,3326.7,1.53603476]
[1768523951897,2.45775045,3328.4,3326.7,1.53603476]
[1768523952104,1.58704446,3328.4,3326.7,1.53603476]
[1768523953618,1.58704446,3328.2,3326.7,1.53603476]
[1768523956216,0.87120683,3328.1,3326.7,1.53603476]
[1768523956507,1.58704446,3328.2,3326.7,1.53603476]
[1768523956709,0.87130932,3328.1,3326.7,1.53603476]
[1768523956908,1.58704446,3328.2,3326.7,1.53603476]
[1768523957108,0.87130931,3328.1,3326.7,1.53603476]
[1768523957298,1.58704446,3328.2,3326.7,1.53603476]
[1768523957498,0.87142732,3328.1,3326.7,1.53603476]
[1768523957696,1.58704446,3328.2,3326.7,1.53603476]
[1768523957902,0.87142732,3328.1,3326.7,1.53603476]
[1768523958101,1.58704446,3328.2,3326.7,1.53603476]
[1768523958305,0.87136371,3328.1,3326.7,1.53603476]
[1768523958504,1.58704446,3328.2,3326.7,1.53603476]
[1768523958704,0.87140303,3328.1,3326.7,1.53603476]
[1768523958922,1.58704446,3328.2,3326.7,1.53603476]
[1768523959106,0.87140302,3328.1,3326.7,1.53603476]
[1768523959410,2.45837962,3328.0,3326.3,2.74140503]
[1768523959613,2.45837962,3327.9,3326.3,2.74140503]
[1768523959807,2.45837962,3327.8,3326.3,1.53603476]
[1768523960006,0.87133516,3327.7,3326.3,1.53603476]
[1768523960217,1.58704446,3327.8,3326.3,1.53603476]
[1768523960407,0.87103777,3327.7,3326.3,1.53603476]
[1768523960608,0.87103777,3327.6,3326.3,1.53603476]
[1768523960818,1.58704446,3327.8,3326.3,1.53603476]
[1768523961013,0.87106002,3327.7,3326.3,1.53603476]
[1768523961216,1.58704446,3327.8,3326.2,0.00268974]
[1768523961416,1.61303168,3327.6,3326.2,0.00268974]
[1768523963608,0.15028,3327.9,3326.2,2.89310883]
[1768523963807,1.61303168,3328.3,3326.6,1.20537027]
[1768523964016,0.86992606,3328.2,3326.6,2.89041909]
[1768523964211,0.86992606,3328.1,3326.6,2.89041909]
[1768523964412,1.61303168,3328.3,3326.6,2.89041909]
[1768523964622,0.86984457,3328.2,3326.6,2.89041909]
[1768523964819,1.61303168,3328.3,3326.6,2.89041909]
[1768523965114,1.61303168,3328.3,3326.7,1.68504882]
[1768523969417,1.66397214,3328.2,3326.8,1.20529342]
[1768523970124,1.66397214,3328.2,3326.9,1.20529342]
[1768523972021,1.66397214,3328.2,3326.7,1.68504882]
[1768523972223,1.66397214,3328.2,3326.9,1.20529342]
[1768523972720,1.66397214,3328.2,3326.7,1.68504882]
[1768523972925,1.66397214,3328.2,3326.9,1.20529342]
[1768523978227,1.20529342,3327.8,3326.2,3.76749161]
[1768523978424,2.86926556,3327.8,3326.5,1.20529342]
[1768523979026,1.66397214,3327.8,3326.5,1.20529342]
[1768523979214,1.20529342,3328.0,3326.7,1.20529342]
[1768523979420,3.01952556,3328.2,3326.7,1.20529342]
[1768523979622,0.87176818,3328.1,3326.7,1.20529342]
[1768523979920,3.01952556,3328.2,3326.7,1.20529342]
[1768523980118,0.87176831,3328.1,3326.7,1.20529342]
[1768523980327,3.01952556,3328.2,3326.7,1.20529342]
[1768523980526,0.87181808,3328.1,3326.3,1.63810244]
[1768523980730,3.01952556,3328.2,3326.7,1.20529342]
[1768523980926,0.87181838,3328.1,3326.7,1.20529342]
[1768523981126,1.66397214,3328.1,3326.7,1.20529342]
[1768523981736,1.66397214,3328.1,3326.3,1.63810244]
[1768523981929,1.66397214,3328.1,3326.7,1.20529342]
[1768523983134,2.86926556,3328.1,3326.7,1.20529342]
[1768523986532,2.86926556,3328.1,3326.6,1.63810244]
[1768523986733,2.86926556,3328.1,3326.7,1.20529342]
[1768523987425,1.66397214,3328.1,3326.7,1.20529342]
[1768523988233,0.87215435,3328.0,3326.7,1.20529342]
[1768523988434,1.66397214,3328.1,3326.7,1.20529342]
[1768523989035,0.87216644,3328.0,3326.7,1.20529342]
[1768523989242,1.66397214,3328.1,3326.7,1.20529342]
[1768523989430,0.87218661,3328.0,3326.7,1.20529342]
[1768523989630,1.66397214,3328.1,3326.7,1.20529342]
[1768523989828,0.87218441,3328.0,3326.7,1.20529342]
[1768523990029,1.66397214,3328.1,3326.7,1.20529342]
[1768523990237,0.87220392,3328.0,3326.7,1.20529342]
[1768523990436,1.66397214,3328.1,3326.7,1.20529342]
[1768523990626,0.87220391,3328.0,3326.7,1.20529342]
[1768523990933,1.66397214,3328.1,3326.7,1.20529342]
[1768523991137,0.87220392,3328.0,3326.7,1.20529342]
[1768523991330,1.66397214,3328.1,3326.7,1.20529342]
[1768523991627,0.87227402,3328.0,3326.7,1.20529342]